bitfinex/quotes_BTCUSD_20250403
["timestamp","ask_amount","ask_price","bid_price","bid_amount"]
[1743718135535,0.241837,82701.0,82698.0,0.241843]
[1743718135730,0.241843,82698.0,82694.0,0.012092]
[1743718136188,0.241843,82698.0,82695.0,0.24185]
[1743718136900,0.241843,82698.0,82696.0,0.01053865]
[1743718137241,0.253938,82697.0,82696.0,0.01053865]
[1743718137442,0.888554,82697.0,82696.0,0.01053865]
[1743718137712,0.24187,82689.0,82686.0,0.00046272]
[1743718138118,0.241873,82688.0,82687.0,0.01069885]
[1743718138315,0.253947,82694.0,82689.0,0.24187]
[1743718138515,0.012092,82693.0,82687.0,0.01069885]
[1743718138676,0.253968,82687.0,82686.0,0.00046272]
[1743718139300,0.241875,82688.0,82686.0,0.00046272]
[1743718139678,0.241875,82687.0,82686.0,0.00046272]
[1743718140079,0.241875,82688.0,82686.0,0.00046272]
[1743718140285,0.241875,82687.0,82686.0,0.00046272]
[1743718144926,0.42517097,82687.0,82686.0,0.00046272]
[1743718146028,0.0483,82687.0,82686.0,0.26521431]
[1743718146212,0.241865,82691.0,82688.0,0.241871]
[1743718146407,0.84624197,82690.0,82689.0,0.01077772]
[1743718146734,0.84624197,82690.0,82687.0,0.241873]
[1743718146908,0.36476997,82690.0,82689.0,0.01077772]
[1743718147253,0.720874,82689.0,82686.0,0.24234072]
[1743718147454,0.241875,82687.0,82686.0,0.00046272]
[1743718149068,0.253968,82687.0,82686.0,0.00046272]
[1743718151946,0.253968,82687.0,82686.0,0.01133226]
[1743718153793,0.253968,82687.0,82686.0,0.00046272]
[1743718154113,0.253968,82687.0,82686.0,0.01133727]
[1743718154319,0.253968,82687.0,82686.0,0.00046272]
[1743718154531,0.253968,82687.0,82686.0,0.01133727]
[1743718154731,0.32829563,82687.0,82686.0,0.00046272]
[1743718154928,3.4581616,82687.0,82686.0,0.00046272]
[1743718155151,2.8866516,82687.0,82686.0,0.00046272]
[1743718155603,2.8142736,82687.0,82686.0,0.00046272]
[1743718155786,2.6458256,82687.0,82686.0,0.00046272]
[1743718157518,3.10036645,82687.0,82686.0,0.00046272]
[1743718157721,3.14566645,82687.0,82686.0,0.00046272]
[1743718158067,4.19114645,82687.0,82686.0,0.00046272]
[1743718159315,4.19214645,82687.0,82686.0,0.00046272]
[1743718160089,2.04731945,82687.0,82686.0,0.00046272]
[1743718160498,7.04731945,82687.0,82686.0,0.00046272]
[1743718162067,6.73111682,82687.0,82686.0,0.00046272]
[1743718162269,6.97299182,82687.0,82686.0,0.00046272]
[1743718163192,6.90564482,82687.0,82686.0,0.00046272]
[1743718163394,6.85031682,82687.0,82686.0,0.00046272]
[1743718163593,6.76216282,82687.0,82686.0,0.00046272]
[1743718166759,6.62045482,82687.0,82686.0,0.00046272]
[1743718167323,6.52044382,82687.0,82686.0,0.00046272]
[1743718168062,2.11283182,82687.0,82686.0,0.00046272]
[1743718168267,6.62045482,82687.0,82686.0,0.00046272]
[1743718168569,6.50293682,82687.0,82686.0,0.00046272]
[1743718169533,6.47180882,82687.0,82686.0,0.00046272]
[1743718169727,6.5947065,82687.0,82686.0,0.00046272]
[1743718169931,6.1684635,82687.0,82686.0,0.00046272]
[1743718172391,6.1704635,82687.0,82686.0,0.00046272]
[1743718172938,6.1694635,82687.0,82686.0,0.00046272]
[1743718173658,6.1674635,82687.0,82686.0,0.00046272]
[1743718174006,6.1704635,82687.0,82686.0,0.00046272]
[1743718174613,6.1724635,82687.0,82686.0,0.00046272]
[1743718177182,6.1774635,82687.0,82686.0,7.2e-07]
[1743718177402,2.2447295,82687.0,82686.0,7.2e-07]
[1743718177927,2.2397295,82687.0,82686.0,7.2e-07]
[1743718178374,2.2437295,82687.0,82686.0,7.2e-07]
[1743718178830,2.2477295,82687.0,82686.0,7.2e-07]
[1743718180866,2.2437295,82687.0,82686.0,7.2e-07]
[1743718181065,2.2397295,82687.0,82686.0,7.2e-07]
[1743718181356,2.2447295,82687.0,82686.0,7.2e-07]
[1743718181603,2.2487295,82687.0,82686.0,7.2e-07]
[1743718181984,2.2437295,82687.0,82686.0,7.2e-07]
[1743718182184,2.2397295,82687.0,82686.0,7.2e-07]
[1743718182392,2.6605295,82687.0,82686.0,7.2e-07]
[1743718182608,2.6905295,82687.0,82686.0,7.2e-07]
[1743718184439,2.70937725,82687.0,82686.0,7.2e-07]
[1743718184951,2.70437725,82687.0,82686.0,7.2e-07]
[1743718185598,2.70937725,82687.0,82686.0,7.2e-07]
[1743718195317,2.83677725,82687.0,82686.0,7.2e-07]
[1743718195560,2.70937725,82687.0,82686.0,7.2e-07]
[1743718196760,2.61132419,82687.0,82686.0,7.2e-07]
[1743718199754,2.65692419,82687.0,82686.0,7.2e-07]
[1743718200582,2.65682419,82687.0,82686.0,7.2e-07]
[1743718202665,2.63182419,82687.0,82686.0,7.2e-07]
[1743718202866,2.65682419,82687.0,82686.0,7.2e-07]
[1743718203051,2.65686419,82687.0,82686.0,7.2e-07]
[1743718205234,2.51698419,82687.0,82686.0,7.2e-07]
[1743718205375,2.65686419,82687.0,82686.0,7.2e-07]
[1743718208930,2.29818651,82687.0,82686.0,7.2e-07]
[1743718209108,2.47963791,82687.0,82686.0,7.2e-07]
[1743718209756,2.49417876,82687.0,82686.0,7.2e-07]
[1743718211600,2.35433876,82687.0,82686.0,7.2e-07]
[1743718211802,1.92399791,82687.0,82686.0,7.2e-07]
[1743718212004,1.58673182,82687.0,82686.0,7.2e-07]
[1743718212185,1.92673182,82687.0,82686.0,7.2e-07]
[1743718212400,1.77235097,82687.0,82686.0,7.2e-07]
[1743718212580,1.90719097,82687.0,82686.0,7.2e-07]
[1743718212918,2.03008865,82687.0,82686.0,7.2e-07]
[1743718213121,2.03308865,82687.0,82686.0,7.2e-07]
[1743718213346,1.91019097,82687.0,82686.0,7.2e-07]
[1743718213980,1.90519097,82687.0,82686.0,7.2e-07]
[1743718214184,1.90819097,82687.0,82686.0,7.2e-07]
[1743718214802,1.90519097,82687.0,82686.0,7.2e-07]
[1743718215340,1.97617749,82687.0,82686.0,7.2e-07]
[1743718217351,1.83633749,82687.0,82686.0,7.2e-07]
[1743718217553,1.97617749,82687.0,82686.0,7.2e-07]
[1743718218383,1.83633749,82687.0,82686.0,7.2e-07]
[1743718218579,1.97617749,82687.0,82686.0,7.2e-07]
[1743718219299,2.09071834,82687.0,82686.0,7.2e-07]
[1743718225767,2.09067834,82687.0,82686.0,7.2e-07]
[1743718226184,0.254054,82659.0,82658.0,0.0472]
[1743718226388,0.254054,82659.0,82637.0,0.012101]
[1743718226389,0.0121,82644.0,82637.0,0.012101]
[1743718226714,0.393854,82659.0,82658.0,0.05834992]
[1743718226914,0.393854,82659.0,82658.0,0.0472]
[1743718227045,0.1398,82659.0,82658.0,0.0472]
[1743718227248,0.1398,82659.0,82658.0,0.30030992]
[1743718227471,0.381757,82659.0,82658.0,0.05834992]
[1743718227678,0.381803,82659.0,82658.0,0.05834992]
[1743718228034,0.3939,82659.0,82658.0,0.05834992]
[1743718228393,0.3939,82659.0,82658.0,0.0472]
[1743718228966,0.25414,82659.0,82658.0,0.0472]
[1743718229525,0.25414,82659.0,82658.0,0.0954]
[1743718231029,8.6e-05,82659.0,82658.0,0.34850992]
[1743718231208,8.6e-05,82659.0,82658.0,0.36060792]
[1743718231635,8.6e-05,82659.0,82658.0,0.35477858]
[1743718232056,8.6e-05,82659.0,82658.0,0.11281858]
[1743718232643,8.6e-05,82659.0,82658.0,0.35477858]
[1743718233067,8.6e-05,82659.0,82658.0,0.36687658]
[1743718233422,8.6e-05,82659.0,82658.0,0.35477858]
[1743718233767,0.25414,82659.0,82658.0,0.11281858]
[1743718234065,0.0861139,82659.0,82658.0,0.11281858]
[1743718234675,0.0861139,82659.0,82658.0,0.35477858]
[1743718235780,0.0861139,82659.0,82658.0,0.11281858]
[1743718236171,0.3280709,82659.0,82658.0,0.11281858]
[1743718238404,0.254083,82650.0,82649.0,0.0493]
[1743718239849,0.254083,82650.0,82649.0,0.0668325]
[1743718241451,0.001086,82659.0,82658.0,0.012098]
[1743718241675,0.001086,82659.0,82658.0,0.254058]
[1743718241856,0.001086,82659.0,82658.0,0.36903486]
[1743718242906,0.001086,82659.0,82658.0,0.49193783]
[1743718243584,8.6e-05,82659.0,82658.0,0.49193783]
[1743718244129,8.6e-05,82659.0,82658.0,0.36903486]
[1743718244456,0.001086,82659.0,82658.0,0.36903486]
[1743718244866,8.6e-05,82659.0,82658.0,0.36903486]
[1743718245262,8.6e-05,82659.0,82658.0,0.37003486]
[1743718245520,8.6e-05,82659.0,82658.0,0.49293783]
[1743718247409,0.241872,82689.0,82685.0,0.012094]
[1743718247571,0.01241135,82704.0,82696.0,0.012092]
[1743718247773,0.1398,82704.0,82700.0,0.241836]
[1743718247922,0.1398,82704.0,82699.0,0.012092]
[1743718247923,0.241835,82701.0,82698.0,0.012092]
[1743718248123,0.012092,82699.0,82693.0,0.012092]
[1743718248382,0.24185,82696.0,82692.0,0.24186]
[1743718248587,0.241853,82695.0,82692.0,0.24186]
[1743718248832,0.24185,82696.0,82693.0,0.241858]
[1743718249113,0.241853,82695.0,82691.0,0.253956]
[1743718249315,0.253945,82695.0,82691.0,0.241861]
[1743718249710,0.012092,82695.0,82689.0,0.012093]
[1743718249911,0.012092,82695.0,82682.0,0.012094]
[1743718249912,0.241873,82688.0,82682.0,0.012094]
[1743718250122,0.012093,82690.0,82687.0,0.241874]
[1743718250469,0.241868,82690.0,82687.0,0.241875]
[1743718250746,0.241868,82690.0,82688.0,0.241872]
[1743718250964,0.012092,82693.0,82689.0,0.241868]
[1743718251127,0.241861,82692.0,82689.0,0.241868]
[1743718251523,0.241864,82691.0,82689.0,0.241868]
[1743718251703,0.241861,82692.0,82689.0,0.241868]
[1743718252509,0.241861,82692.0,82689.0,0.242868]
[1743718252944,0.241861,82692.0,82689.0,0.241868]
[1743718253147,0.012093,82689.0,82685.0,0.24188]
[1743718253508,0.241858,82694.0,82690.0,0.241864]
[1743718253653,0.25395,82694.0,82690.0,0.241864]
[1743718253857,0.241861,82692.0,82689.0,0.012093]
[1743718254065,0.241861,82692.0,82689.0,0.253962]
[1743718254626,0.34,82700.0,82689.0,0.25396]
[1743718254835,0.34,82700.0,82697.0,0.012092]
[1743718255068,0.012092,82699.0,82694.0,0.241855]
[1743718255441,0.012092,82699.0,82695.0,0.01733646]
[1743718255646,0.241843,82698.0,82695.0,0.25918846]
[1743718255943,0.241843,82698.0,82696.0,0.241849]
[1743718256394,0.241843,82698.0,82697.0,0.01733439]
[1743718256572,0.341,82700.0,82697.0,0.02942639]
[1743718256814,0.34,82700.0,82697.0,0.01733439]
[1743718257033,0.34,82700.0,82697.0,0.241846]
[1743718257207,0.34,82700.0,82699.0,0.24184]
[1743718257618,0.34,82702.0,82699.0,0.25895057]
[1743718257830,0.001,82700.0,82699.0,0.27104257]
[1743718258209,0.001,82700.0,82699.0,0.31844257]
[1743718258375,0.00011701,82704.0,82703.0,0.241829]
[1743718258786,0.00011701,82704.0,82703.0,0.0170699]
[1743718259250,0.33061811,82704.0,82703.0,0.0170699]
[1743718259456,0.33061811,82704.0,82698.0,0.012092]
[1743718259662,0.25403401,82704.0,82700.0,0.241835]
[1743718259985,0.25403401,82704.0,82701.0,0.01706949]
[1743718260190,0.25503401,82704.0,82701.0,0.01706949]
[1743718260387,0.00111701,82704.0,82701.0,0.25890449]
[1743718261658,0.00011701,82704.0,82701.0,0.25890449]
[1743718262016,0.241832,82702.0,82701.0,0.01706949]
[1743718262223,0.241849,82697.0,82693.0,0.241856]
[1743718262419,0.012091,82702.0,82693.0,0.241856]
[1743718262650,0.241852,82696.0,82694.0,0.01707674]
[1743718262844,0.241852,82696.0,82692.0,0.253954]
[1743718263064,0.241852,82695.0,82692.0,0.253954]
[1743718263265,0.253944,82695.0,82688.0,0.253963]
[1743718263576,0.253944,82695.0,82693.0,0.001]
[1743718263967,0.241852,82695.0,82693.0,0.001]
[1743718264319,0.253947,82696.0,82693.0,0.242858]
[1743718264521,0.241844,82698.0,82695.0,0.241849]
[1743718264725,0.241835,82701.0,82698.0,0.241843]
[1743718264926,0.241839,82700.0,82698.0,0.241843]
[1743718265150,0.241832,82702.0,82698.0,0.241843]
[1743718265672,0.253916,82705.0,82699.0,0.012092]
[1743718265880,0.253904,82708.0,82699.0,0.012092]
[1743718265881,0.241815,82708.0,82703.0,0.25392]
[1743718267047,0.241817,82707.0,82703.0,0.25392]
[1743718267244,0.00111701,82704.0,82700.0,0.241837]
[1743718267445,0.00111701,82704.0,82702.0,0.241829]
[1743718267654,0.241829,82703.0,82699.0,0.24184]
[1743718267859,0.241829,82703.0,82698.0,0.253933]
[1743718268060,0.241839,82700.0,82696.0,0.241849]
[1743718269412,0.241846,82698.0,82693.0,0.241856]
[1743718269616,0.241858,82694.0,82688.0,0.24187]
[1743718269810,0.241858,82694.0,82689.0,0.241869]
[1743718269811,0.25395,82693.0,82689.0,0.241869]
[1743718270025,0.241859,82693.0,82690.0,0.241866]
[1743718270436,0.241858,82694.0,82690.0,0.241866]
[1743718271244,0.241852,82695.0,82693.0,0.001]
[1743718271513,0.241853,82695.0,82693.0,0.001]
[1743718271688,0.241855,82694.0,82693.0,0.001]
[1743718271887,0.241855,82694.0,82690.0,0.241865]
[1743718272046,0.241855,82694.0,82693.0,0.01695911]
[1743718272228,0.24186,82693.0,82690.0,0.242865]
[1743718272427,0.253945,82695.0,82691.0,0.241863]
[1743718272625,0.253941,82696.0,82692.0,0.241858]
[1743718272843,0.241854,82695.0,82692.0,0.241858]
[1743718273048,0.241854,82695.0,82693.0,0.001]
[1743718274611,0.241854,82695.0,82692.0,0.241858]
[1743718274812,0.241854,82695.0,82692.0,0.242858]
[1743718275308,0.241854,82695.0,82692.0,0.241858]
[1743718275510,0.241852,82695.0,82692.0,0.241858]
[1743718275715,0.241852,82695.0,82693.0,0.001]
[1743718276324,0.241852,82695.0,82692.0,0.241858]
[1743718276585,0.241841,82699.0,82693.0,0.253949]
[1743718276769,0.30463682,82720.0,82692.0,0.001]
[1743718276770,0.00011701,82704.0,82703.0,0.241829]
[1743718276978,0.00011701,82704.0,82703.0,0.25392]
[1743718277184,0.004,82709.0,82708.0,0.253904]
[1743718277380,4e-05,82712.0,82711.0,0.253895]
[1743718277595,4e-05,82712.0,82711.0,0.37679797]
[1743718277768,0.00050036,82712.0,82711.0,0.37679797]
[1743718279793,0.00050036,82712.0,82711.0,0.37779797]
[1743718285503,0.00050036,82712.0,82711.0,0.76749797]
[1743718285650,0.0129,82753.0,82738.0,0.253812]
[1743718285855,0.00413805,82739.0,82738.0,0.253812]
[1743718286985,0.00413805,82739.0,82738.0,0.27027193]
[1743718287143,0.00413805,82739.0,82738.0,0.3931749]
[1743718293061,0.00413805,82739.0,82738.0,0.5327749]
[1743718294648,0.00413805,82739.0,82738.0,0.3931749]
[1743718294824,0.00413805,82739.0,82738.0,0.27027193]
[1743718302234,0.01622405,82739.0,82738.0,0.01645993]
[1743718302448,0.241736,82735.0,82731.0,0.241746]
[1743718302622,0.241736,82735.0,82732.0,0.241744]
[1743718302827,0.241747,82731.0,82727.0,0.012087]
[1743718303037,0.241745,82732.0,82729.0,0.24175]
[1743718303403,0.253828,82733.0,82730.0,0.24175]
[1743718304338,0.241741,82733.0,82730.0,0.24175]
[1743718304538,0.241746,82732.0,82728.0,0.253841]
[1743718304738,0.241749,82731.0,82728.0,0.241754]
[1743718305506,0.241741,82733.0,82728.0,0.253841]
[1743718305853,0.241741,82733.0,82730.0,0.241749]
[1743718306182,0.241744,82732.0,82729.0,0.241752]
[1743718306806,0.241741,82733.0,82730.0,0.241749]
[1743718307619,0.241744,82732.0,82729.0,0.241752]
[1743718308114,0.241744,82732.0,82730.0,0.241749]
[1743718308319,0.253828,82733.0,82730.0,0.241749]
[1743718309257,0.241744,82732.0,82730.0,0.241749]
[1743718309494,0.241739,82734.0,82731.0,0.241747]
[1743718309665,0.241741,82734.0,82730.0,0.253836]
[1743718310371,0.241747,82731.0,82729.0,0.241752]
[1743718310513,0.241744,82732.0,82729.0,0.241752]
[1743718310712,0.012087,82733.0,82730.0,0.241749]
[1743718310713,0.253829,82733.0,82730.0,0.241749]
[1743718312212,0.241739,82734.0,82731.0,0.241746]
[1743718313002,0.241756,82729.0,82725.0,0.012088]
[1743718313318,0.241749,82731.0,82728.0,0.241753]
[1743718313518,0.012087,82732.0,82725.0,0.241764]
[1743718313676,0.012087,82732.0,82729.0,0.01602901]
[1743718313873,0.012086,82734.0,82726.0,0.253847]
[1743718314072,0.253824,82734.0,82731.0,0.241746]
[1743718314504,0.253824,82734.0,82732.0,0.0160259]
[1743718314826,0.012125,82742.0,82738.0,0.241726]
[1743718315187,0.25384,82742.0,82738.0,0.25785023]
[1743718315640,0.24172,82741.0,82738.0,0.25785023]
[1743718315843,0.24586105,82739.0,82738.0,0.01612423]
[1743718316000,0.24586105,82739.0,82736.0,0.241732]
[1743718316204,0.24586105,82739.0,82737.0,0.25783191]
[1743718317060,0.00413805,82739.0,82737.0,0.25783191]
[1743718318117,0.253812,82738.0,82737.0,0.01610291]
[1743718318287,0.299612,82738.0,82737.0,0.01610291]
[1743718318504,0.241744,82733.0,82730.0,0.241749]
[1743718318985,0.241744,82733.0,82731.0,0.241747]
[1743718319345,0.241739,82734.0,82731.0,0.241747]
[1743718319849,0.241742,82733.0,82731.0,0.241747]
[1743718320319,0.241736,82735.0,82732.0,0.241744]
[1743718320643,0.057886,82738.0,82732.0,0.241744]
[1743718320644,0.0458,82738.0,82733.0,0.012087]
[1743718320864,0.241726,82738.0,82735.0,0.253819]
[1743718321063,0.00413805,82739.0,82738.0,0.253812]
[1743718325215,0.00413805,82739.0,82738.0,0.42501497]
[1743718325417,0.00413805,82739.0,82738.0,0.42491497]
[1743718326553,0.00413805,82739.0,82738.0,0.95177497]
[1743718326554,5e-08,82739.0,82738.0,0.95177497]
[1743718329127,5e-08,82739.0,82738.0,0.95177497]
[1743718331800,5e-08,82739.0,82738.0,0.96758341]
[1743718335148,5e-08,82739.0,82738.0,0.98212426]
[1743718336244,0.1,82795.0,82768.0,0.241636]
[1743718336614,0.24173475,82772.0,82768.0,0.241636]
[1743718336813,0.24173475,82772.0,82769.0,0.01578462]
[1743718337260,0.00010675,82772.0,82769.0,0.25741962]
[1743718337660,0.00010675,82772.0,82771.0,0.253711]
[1743718338003,0.00110675,82772.0,82771.0,0.26939706]
[1743718338570,0.00210675,82772.0,82771.0,0.26939706]
[1743718338752,0.00110675,82772.0,82771.0,0.26939706]
[1743718339084,0.00210675,82772.0,82771.0,0.26939706]
[1743718339482,0.00110675,82772.0,82771.0,0.26939706]
[1743718339642,0.00210675,82772.0,82771.0,0.26939706]
[1743718339822,0.00410675,82772.0,82771.0,0.26939706]
[1743718340232,0.00210675,82772.0,82771.0,0.26939706]
[1743718340689,0.00310675,82772.0,82771.0,0.26939706]
[1743718341997,0.00110675,82772.0,82771.0,0.25731606]
[1743718342189,0.00210675,82772.0,82771.0,0.25731606]
[1743718342488,0.00110675,82772.0,82771.0,0.25731606]
[1743718342674,0.00010675,82772.0,82771.0,0.25731606]
[1743718342854,0.00210675,82772.0,82771.0,0.26939706]
[1743718343291,0.00110675,82772.0,82771.0,0.26939706]
[1743718343666,0.00210675,82772.0,82771.0,0.26939706]
[1743718344268,0.00110675,82772.0,82771.0,0.26939706]
[1743718344956,0.00010675,82772.0,82771.0,0.26939706]
[1743718345154,0.05937893,82772.0,82771.0,0.26939706]
[1743718345453,0.06037893,82772.0,82771.0,0.26939706]
[1743718345655,0.05937893,82772.0,82771.0,0.26939706]
[1743718345855,0.00210675,82772.0,82771.0,0.26939706]
[1743718346629,0.00210675,82772.0,82771.0,0.39230003]
[1743718346810,0.00110675,82772.0,82771.0,0.39230003]
[1743718347257,0.00210675,82772.0,82771.0,0.39230003]
[1743718347833,0.00110675,82772.0,82771.0,0.39230003]
[1743718348033,0.00010675,82772.0,82771.0,0.39230003]
[1743718348436,0.00010675,82772.0,82771.0,0.43860003]
[1743718351178,0.00010675,82772.0,82771.0,0.57808003]
[1743718358335,0.00010675,82772.0,82771.0,0.53178003]
[1743718363974,0.00010675,82772.0,82771.0,0.39230003]
[1743718364169,0.00010675,82772.0,82771.0,0.01568606]
[1743718364403,0.04770675,82772.0,82771.0,0.26939706]
[1743718364621,0.34363503,82772.0,82771.0,0.01568606]
[1743718364806,0.40261603,82772.0,82771.0,0.01568606]
[1743718365008,0.241643,82767.0,82763.0,0.241652]
[1743718365213,0.241647,82766.0,82762.0,0.241654]
[1743718365417,0.241647,82766.0,82764.0,0.01552867]
[1743718365739,0.241647,82766.0,82765.0,0.01552764]
[1743718365956,0.241636,82770.0,82765.0,0.01552764]
[1743718366092,0.09460675,82772.0,82771.0,0.24163]
[1743718366305,0.09460675,82772.0,82771.0,0.253711]
[1743718366502,0.09460675,82772.0,82771.0,0.26923244]
[1743718368099,0.00010675,82772.0,82771.0,0.26923244]
[1743718370570,0.00010675,82772.0,82771.0,0.39213541]
[1743718372991,0.34,82793.0,82789.0,0.241577]
[1743718373193,0.34,82793.0,82790.0,0.241575]
[1743718373418,0.34,82793.0,82790.0,0.2572177]
[1743718373581,0.581567,82793.0,82790.0,0.2692957]
[1743718373782,0.34,82793.0,82790.0,0.0156427]
[1743718374096,0.34,82794.0,82791.0,0.01564167]
[1743718374430,0.001,82793.0,82792.0,0.241569]
[1743718374658,0.001,82793.0,82792.0,0.25720963]
[1743718374893,0.001,82793.0,82792.0,0.01564063]
[1743718375094,0.001,82793.0,82792.0,0.25720963]
[1743718375433,0.001,82793.0,82792.0,0.26928763]
[1743718375630,0.581556,82797.0,82793.0,0.253641]
[1743718376007,0.340261,82795.0,82794.0,0.01563857]
[1743718376366,0.340261,82795.0,82792.0,0.241568]
[1743718376562,0.340261,82795.0,82792.0,0.241569]
[1743718376563,0.001,82793.0,82792.0,0.241569]
[1743718376770,0.002,82793.0,82792.0,0.253647]
[1743718376978,0.002,82793.0,82792.0,0.26928763]
[1743718377184,0.1007,82795.0,82794.0,0.241563]
[1743718377661,0.1007,82795.0,82794.0,0.25720157]
[1743718378065,0.1007,82795.0,82794.0,0.01563857]
[1743718378271,0.21251972,82795.0,82794.0,0.25720157]
[1743718378529,0.21251972,82795.0,82794.0,0.01563857]
[1743718378933,0.21051972,82795.0,82794.0,0.25720157]
[1743718379211,0.21251972,82795.0,82794.0,0.25720157]
[1743718379609,0.1007,82795.0,82794.0,0.25720157]
[1743718379811,0.0987,82795.0,82794.0,0.25720157]
[1743718380013,0.1007,82795.0,82794.0,0.25720157]
[1743718380789,0.1027,82795.0,82794.0,0.25720157]
[1743718381215,0.1007,82795.0,82794.0,0.25720157]
[1743718381421,0.002,82795.0,82794.0,0.26927957]
[1743718381620,0.004,82795.0,82794.0,0.26927957]
[1743718382025,0.002,82795.0,82794.0,0.26927957]
[1743718382450,0.004,82795.0,82794.0,0.26927957]
[1743718382855,0.002,82795.0,82794.0,0.39218254]
[1743718383058,0.00045995,82797.0,82794.0,0.39218254]
[1743718383059,0.00045995,82797.0,82796.0,0.253634]
[1743718383254,0.00045995,82797.0,82796.0,0.37653697]
[1743718383552,0.00045995,82797.0,82796.0,0.44129199]
[1743718386872,9.5e-07,82797.0,82796.0,0.44129199]
[1743718391665,9.5e-07,82799.0,82798.0,0.253628]
[1743718391989,8.5e-07,82799.0,82798.0,0.40072262]
[1743718392178,8.5e-07,82799.0,82798.0,0.44692262]
[1743718392982,8.5e-07,82799.0,82798.0,0.78692262]
[1743718398387,8.5e-07,82799.0,82798.0,0.88004262]
[1743718400199,8.5e-07,82799.0,82798.0,0.40072262]
[1743718404300,8.5e-07,82799.0,82798.0,0.27781965]
[1743718407602,8.5e-07,82799.0,82798.0,0.26883415]
[1743718407801,0.04930085,82799.0,82798.0,0.26883415]
[1743718408201,8.5e-07,82799.0,82798.0,0.26883415]
[1743718411010,8.5e-07,82799.0,82798.0,0.39173712]
[1743718414500,8.5e-07,82799.0,82798.0,0.40090574]
[1743718414699,8.5e-07,82799.0,82798.0,0.45020574]
[1743718420073,8.5e-07,82799.0,82798.0,0.79020574]
[1743718423681,8.5e-07,82799.0,82798.0,0.92948574]
[1743718424566,8.5e-07,82799.0,82798.0,0.74090574]
[1743718424776,8.5e-07,82799.0,82798.0,0.88018574]
[1743718425143,8.5e-07,82799.0,82798.0,0.40090574]
[1743718425422,8.5e-07,82799.0,82798.0,0.54018574]
[1743718428080,8.5e-07,82799.0,82798.0,0.27800277]
[1743718428360,8.5e-07,82799.0,82798.0,0.26883415]
[1743718433570,0.301191,82811.0,82808.0,0.241522]
[1743718433775,0.301191,82811.0,82809.0,0.01261252]
[1743718434432,0.289116,82811.0,82809.0,0.01261252]
[1743718435023,0.0476,82811.0,82809.0,0.01261252]
[1743718435280,0.289114,82811.0,82809.0,0.01261252]
[1743718435585,0.0476,82811.0,82809.0,0.01261252]
[1743718435761,0.289114,82811.0,82809.0,0.01261252]
[1743718435895,0.0476,82811.0,82809.0,0.25413152]
[1743718436687,0.0488,82810.0,82809.0,0.01261252]
[1743718440491,0.0488,82810.0,82809.0,0.25413152]
[1743718441012,0.3772382,82810.0,82809.0,0.01261252]
[1743718441155,0.241563,82794.0,82787.0,0.012079]
[1743718441364,0.109478,82795.0,82788.0,0.012079]
[1743718441560,0.109478,82795.0,82794.0,0.241563]
[1743718441561,0.0974,82795.0,82794.0,0.241563]
[1743718442029,0.0974,82795.0,82794.0,0.26422894]
[1743718442325,0.0488,82802.0,82801.0,0.241542]
[1743718442530,0.0486,82803.0,82802.0,0.253617]
[1743718442890,0.0486,82803.0,82802.0,0.26422862]
[1743718443126,0.290137,82803.0,82802.0,0.01061162]
[1743718443339,0.290137,82803.0,82799.0,0.241543]
[1743718443540,0.36122573,82803.0,82800.0,0.01061369]
[1743718444313,0.0486,82803.0,82800.0,0.02269069]
[1743718444646,0.0486,82803.0,82800.0,0.26423569]
[1743718445296,0.0486,82803.0,82801.0,0.241542]
[1743718445528,0.34,82810.0,82808.0,0.241522]
[1743718445708,0.34,82810.0,82809.0,0.253593]
[1743718445901,0.0488,82814.0,82810.0,0.253591]
[1743718446104,0.3888,82814.0,82812.0,0.24151]
[1743718446429,0.3888,82814.0,82813.0,0.01060027]
[1743718446705,0.7368343,82814.0,82813.0,0.01060027]
[1743718446848,0.85973727,82814.0,82813.0,0.01060027]
[1743718447049,0.23933085,82803.0,82799.0,0.241546]
[1743718447277,0.241534,82804.0,82801.0,0.241542]
[1743718447475,0.30463682,82810.0,82806.0,0.241527]
[1743718447695,0.24151,82813.0,82809.0,0.241519]
[1743718447696,0.241508,82813.0,82809.0,0.241519]
[1743718448097,0.0486,82815.0,82811.0,0.241511]
[1743718448307,0.34,82814.0,82811.0,0.241511]
[1743718448513,0.241508,82813.0,82809.0,0.241518]
[1743718448714,0.581506,82814.0,82810.0,0.241516]
[1743718448976,0.583506,82814.0,82810.0,0.241516]
[1743718449144,0.583506,82814.0,82811.0,0.241513]
[1743718449593,0.58157814,82814.0,82811.0,0.241513]
[1743718449801,0.242508,82813.0,82810.0,0.241516]
[1743718449941,0.242508,82813.0,82633.0,0.5]
[1743718449942,0.241522,82808.0,82805.0,0.241528]
[1743718450143,0.01314714,82814.0,82806.0,0.241528]
[1743718450343,0.241515,82811.0,82807.0,0.241523]
[1743718450547,0.241518,82810.0,82807.0,0.236523]
[1743718450786,0.241522,82808.0,82805.0,0.241531]
[1743718451000,0.012076,82807.0,82795.0,0.241557]
[1743718451155,0.012076,82807.0,82804.0,0.241533]
[1743718451354,0.241529,82806.0,82803.0,0.241536]
[1743718451811,0.241529,82806.0,82804.0,0.01060956]
[1743718452010,0.012076,82807.0,82804.0,0.01060956]
[1743718452011,0.34,82813.0,82804.0,0.01060956]
[1743718452212,0.34,82813.0,82809.0,0.012075]
[1743718452357,0.34,82813.0,82812.0,0.24151]
[1743718452558,0.34,82813.0,82812.0,0.0106013]
[1743718452958,0.581507,82813.0,82809.0,0.253594]
[1743718453242,0.241513,82811.0,82810.0,0.01065242]
[1743718453445,0.241513,82811.0,82802.0,0.241539]
[1743718453446,0.012076,82807.0,82802.0,0.241539]
[1743718453595,0.253597,82809.0,82805.0,0.241531]
[1743718453797,0.241524,82808.0,82806.0,0.01065655]
[1743718454000,0.241524,82808.0,82806.0,0.25218455]
[1743718454247,0.253597,82809.0,82806.0,0.25218455]
[1743718454399,0.12289768,82808.0,82806.0,0.25218455]
[1743718455002,0.12289768,82808.0,82806.0,0.01065655]
[1743718455244,0.12289768,82808.0,82804.0,0.241531]
[1743718455459,0.12289768,82808.0,82806.0,0.241527]
[1743718455664,0.12289768,82808.0,82807.0,0.01065552]
[1743718456221,0.36441968,82808.0,82807.0,0.01065552]
[1743718456621,0.36441968,82808.0,82805.0,0.24153]
[1743718456879,0.36541968,82808.0,82806.0,0.01065655]
[1743718457289,0.03574747,82807.0,82806.0,0.01065655]